fUST/lending_fUST_20250531
["ID","MTS","AMOUNT","RATE_DAILY","PERIOD"]
[363222685,1748628647632,-430.0,0.00017738,2]
[363222686,1748628647642,-430.0,0.00017738,2]
[363222687,1748628647651,-435.07818938,0.00017738,2]
[363222688,1748628647661,-430.0,0.00017738,2]
[363222689,1748628647671,-430.0,0.00017738,2]
[363222690,1748628647680,-430.0,0.00017738,2]
[363222691,1748628647690,-430.0,0.00017738,2]
[363222692,1748628647700,-430.0,0.00017738,2]
[363222693,1748628647711,-430.0,0.00017738,2]
[363222694,1748628647721,-430.0,0.00017738,2]
[363222695,1748628647730,-430.0,0.00017738,2]
[363222696,1748628647740,-442.38,0.00017738,2]
[363222697,1748628647750,-430.0,0.00017738,2]
[363222698,1748628647760,-430.0,0.00017738,2]
[363222699,1748628647769,-1000.0,0.00017738,2]
[363222700,1748628647779,-430.0,0.00017738,2]
[363222701,1748628647789,-430.0,0.00017738,2]
[363222702,1748628647798,-430.0,0.00017738,2]
[363222703,1748628647808,-430.0,0.00017738,2]
[363222704,1748628647818,-151.0,0.00017738,2]
[363222705,1748628647828,-430.0,0.00017738,2]
[363222706,1748628647838,-430.0,0.00017738,2]
[363222707,1748628647847,-430.0,0.00017738,2]
[363222708,1748628647867,-430.0,0.00017738,2]
[363222709,1748628647883,-430.0,0.00017738,2]
[363222710,1748628647898,-360.63370483,0.00017738,2]
[363222711,1748628647914,-430.0,0.00017738,2]
[363222712,1748628647932,-430.0,0.00017738,2]
[363222713,1748628647948,-373.39057096,0.00017738,2]
[363222714,1748628647965,-430.0,0.00017738,2]
[363222715,1748628647979,-430.0,0.00017738,2]
[363222716,1748628647994,-381.14827141,0.00017738,2]
[363222717,1748628648010,-430.0,0.00017738,2]
[363222718,1748628648025,-430.0,0.00017738,2]
[363222719,1748628648039,-430.0,0.00017738,2]
[363222720,1748628648054,-430.0,0.00017738,2]
[363222721,1748628648071,-430.0,0.00017738,2]
[363222722,1748628648089,-192.86084402,0.00017738,2]
[363222723,1748628648106,-430.0,0.00017738,2]
[363222724,1748628648122,-430.0,0.00017738,2]
[363222725,1748628648134,-430.0,0.00017738,2]
[363222726,1748628648148,-430.0,0.00017738,2]
[363222727,1748628648165,-430.0,0.00017738,2]
[363222728,1748628648178,-430.0,0.00017738,2]
[363222729,1748628648193,-430.0,0.00017738,2]
[363222730,1748628648211,-430.0,0.00017738,2]
[363222731,1748628648224,-430.0,0.00017738,2]
[363222732,1748628648239,-377.2179906,0.00017738,2]
[363222733,1748628648253,-430.0,0.00017738,2]
[363222734,1748628648267,-430.0,0.00017738,2]
[363222735,1748628648282,-430.0,0.00017738,2]
[363222736,1748628648297,-430.0,0.00017738,2]
[363222737,1748628648311,-430.0,0.00017738,2]
[363222738,1748628648330,-430.0,0.00017738,2]
[363222739,1748628648345,-433.78185387,0.00017738,2]
[363222740,1748628648360,-430.0,0.00017738,2]
[363222741,1748628648374,-330.15521144,0.00017738,2]
[363222742,1748628648389,-430.0,0.00017738,2]
[363222743,1748628648405,-151.0,0.00017738,2]
[363222744,1748628648421,-430.0,0.00017738,2]
[363222745,1748628648435,-430.0,0.00017738,2]
[363222746,1748628648449,-430.0,0.00017738,2]
[363222747,1748628648464,-430.0,0.00017738,2]
[363222748,1748628648478,-151.0,0.00017738,2]
[363222749,1748628648492,-430.0,0.00017738,2]
[363222750,1748628648506,-394.0235,0.00017738,2]
[363222751,1748628648521,-430.0,0.00017738,2]
[363222752,1748628648536,-430.0,0.00017738,2]
[363222753,1748628648549,-430.0,0.00017738,2]
[363222754,1748628648564,-151.0,0.00017738,2]
[363222755,1748628648582,-151.0,0.00017738,2]
[363222756,1748628648596,-430.0,0.00017738,2]
[363222757,1748628648611,-430.0,0.00017738,2]
[363222758,1748628648625,-430.0,0.00017738,2]
[363222759,1748628648640,-430.0,0.00017738,2]
[363222760,1748628648655,-430.0,0.00017738,2]
[363222761,1748628648669,-430.0,0.00017738,2]
[363222762,1748628648682,-430.0,0.00017738,2]
[363222763,1748628648696,-430.0,0.00017738,2]
[363222764,1748628648709,-184.557744,0.00017738,2]
[363222765,1748628648723,-617.158855,0.00017738,2]
[363222766,1748628648737,-617.158855,0.00017738,2]
[363222767,1748628648751,-2335.708636,0.00017738,2]
[363222768,1748628648766,-2335.708636,0.00017738,2]
[363222769,1748628648780,-151.0,0.00017738,2]
[363222770,1748628648794,-151.0,0.00017738,2]
[363222771,1748628648807,-430.0,0.00017738,2]
[363222772,1748628648823,-430.0,0.00017738,2]
[363222773,1748628648836,-151.0,0.00017738,2]
[363222774,1748628648850,-1044.356687,0.00017738,2]
[363222775,1748628648864,-151.0,0.00017738,2]
[363222776,1748628648879,-1044.356687,0.00017738,2]
[363222777,1748628648891,-151.0,0.00017738,2]
[363222778,1748628648902,-164.695509,0.00017738,2]
[363222779,1748628648912,-639.511507,0.00017738,2]
[363222780,1748628648922,-430.0,0.00017738,2]
[363222781,1748628648932,-639.511507,0.00017738,2]
[363222782,1748628648943,-430.0,0.00017738,2]
[363222783,1748628648953,-430.0,0.00017738,2]
[363222784,1748628648964,-430.0,0.00017738,2]
[363222785,1748628648974,-500.0,0.00017741,2]
[363222786,1748628648984,-500.0,0.00017751,2]
[363222787,1748628648993,-500.0,0.00017751,2]
[363222788,1748628649003,-528.85817088,0.00017765,2]
[363222789,1748628649013,-500.0,0.00017842,2]
[363222790,1748628649023,-500.0,0.00017842,2]
[363222791,1748628649033,-500.0,0.00017842,2]
[363222792,1748628649244,-526.39,0.00017861,2]
[363222793,1748628649268,-659.05,0.00017861,2]
[363222794,1748628649282,-437.35,0.00017861,2]
[363222795,1748628649292,-3293.23,0.00017861,2]
[363222796,1748628649302,-220.7309126,0.00017862,2]
[363222797,1748628649312,-5064.71,0.00017862,2]
[363222798,1748628649322,-3092.45,0.00017862,2]
[363222799,1748628649332,-4975.41,0.00017862,2]
[363222800,1748628649342,-438.83,0.00017862,2]
[363222801,1748628649352,-1013.7,0.00017862,2]
[363222802,1748628649361,-1013.7,0.00017862,2]
[363222803,1748628649372,-1388.75,0.00017862,2]
[363222804,1748628649382,-6322.34,0.00017862,2]
[363222805,1748628649391,-832.79,0.00017862,2]
[363222806,1748628649401,-830.88,0.00017862,2]
[363222807,1748628649410,-1096.68,0.00017862,2]
[363222808,1748628649420,-494.46,0.00017862,2]
[363222809,1748628649430,-4468.77,0.00017862,2]
[363222810,1748628649440,-5145.3,0.00017862,2]
[363222811,1748628649450,-430.0,0.00017862,2]
[363222812,1748628649460,-585.71,0.00017862,2]
[363222813,1748628649470,-1689.53,0.00017862,2]
[363222814,1748628649481,-151.0,0.00017862,2]
[363222815,1748628649490,-158.27774,0.00017862,2]
[363222816,1748628649500,-3205.2,0.00017862,2]
[363222817,1748628649510,-158.27774,0.00017862,2]
[363222818,1748628649520,-430.0,0.00017862,2]
[363222819,1748628649530,-922.57,0.00017862,2]
[363222820,1748628649540,-430.0,0.00017863,2]
[363222821,1748628649549,-430.0,0.00017863,2]
[363222822,1748628649561,-430.0,0.00017863,2]
[363222823,1748628649571,-430.0,0.00017863,2]
[363222824,1748628649582,-430.0,0.00017863,2]
[363222825,1748628649592,-430.0,0.00017863,2]
[363222826,1748628649601,-430.0,0.00017863,2]
[363222827,1748628649611,-430.0,0.00017863,2]
[363222828,1748628649621,-430.0,0.00017863,2]
[363222829,1748628649632,-430.0,0.00017863,2]
[363222830,1748628649643,-430.0,0.00017863,2]
[363222831,1748628649652,-430.0,0.00017863,2]
[363222832,1748628649662,-430.0,0.00017863,2]
[363222833,1748628649671,-661.01,0.00017863,2]
[363222834,1748628649682,-430.0,0.00017863,2]
[363222835,1748628649692,-430.0,0.00017863,2]
[363222836,1748628649702,-430.0,0.00017863,2]
[363222837,1748628649711,-439.55,0.00017863,2]
[363222838,1748628649720,-430.0,0.00017863,2]
[363222839,1748628649730,-430.0,0.00017863,2]
[363222840,1748628649739,-475.18471669,0.00017863,2]
[363222841,1748628649748,-710.14,0.00017863,2]
[363222842,1748628649758,-430.0,0.00017863,2]
[363222843,1748628649768,-429.94939126,0.00017863,2]
[363222844,1748628649777,-430.0,0.00017863,2]
[363222845,1748628649786,-430.0,0.00017863,2]
[363222846,1748628649795,-430.0,0.00017863,2]
[363222847,1748628649804,-343.46592307,0.00017863,2]
[363222848,1748628649818,-430.0,0.00017863,2]
[363222849,1748628649829,-430.0,0.00017863,2]
[363222850,1748628649838,-430.0,0.00017863,2]
[363222851,1748628649848,-430.0,0.00017863,2]
[363222852,1748628649857,-430.0,0.00017863,2]
[363222853,1748628649867,-1065.66,0.00017863,2]
[363222854,1748628649877,-1548.12,0.00017863,2]
[363222855,1748628649887,-430.0,0.00017863,2]
[363222856,1748628649897,-430.0,0.00017863,2]
[363222857,1748628649907,-430.0,0.00017863,2]
[363222858,1748628649916,-855.66,0.00017863,2]
[363222859,1748628649926,-430.0,0.00017863,2]
[363222860,1748628649935,-430.0,0.00017863,2]
[363222861,1748628649945,-503.21,0.00017863,2]
[363222862,1748628649955,-430.0,0.00017863,2]
[363222863,1748628649964,-430.0,0.00017863,2]
[363222864,1748628649974,-430.0,0.00017863,2]
[363222865,1748628649983,-430.0,0.00017863,2]
[363222866,1748628649993,-430.0,0.00017863,2]
[363222867,1748628650002,-456.65616903,0.00017863,2]
[363222868,1748628650012,-734.81,0.00017863,2]
[363222869,1748628650021,-430.0,0.00017863,2]
[363222870,1748628650032,-430.0,0.00017863,2]
[363222871,1748628650042,-2258.89,0.00017863,2]
[363222872,1748628650051,-478.93,0.00017863,2]
[363222873,1748628650061,-430.0,0.00017863,2]
[363222874,1748628650071,-803.69,0.00017863,2]
[363222875,1748628650080,-430.0,0.00017863,2]
[363222876,1748628650090,-430.0,0.00017863,2]
[363222877,1748628650099,-1172.59,0.00017863,2]
[363222878,1748628650109,-475.91,0.00017863,2]
[363222879,1748628650118,-549.04,0.00017863,2]
[363222880,1748628650127,-1058.24,0.00017863,2]
[363222881,1748628650136,-511.47079416,0.00017863,2]
[363222882,1748628650145,-413.60622999,0.00017863,2]
[363222883,1748628650154,-430.0,0.00017863,2]
[363222884,1748628650163,-547.80384565,0.00017863,2]
[363222885,1748628650175,-1864.88,0.00017863,2]
[363222886,1748628650195,-430.0,0.00017863,2]
[363222887,1748628650208,-430.0,0.00017863,2]
[363222888,1748628650218,-151.0,0.00017863,2]
[363222889,1748628650228,-2580.675736,0.00017863,2]
[363222890,1748628650238,-430.0,0.00017863,2]
[363222891,1748628650250,-480.88,0.00017863,2]
[363222892,1748628650259,-2183.03,0.00017863,2]
[363222893,1748628650269,-2580.675736,0.00017863,2]
[363222894,1748628650279,-259.430525,0.00017863,2]
[363222895,1748628650288,-1372.05,0.00017863,2]
[363222896,1748628650298,-1629.45,0.00017863,2]
[363222897,1748628650308,-500.0,0.00017863,2]
[363222898,1748628650318,-430.0,0.00017863,2]
[363222899,1748628650328,-430.0,0.00017863,2]
[363222900,1748628650338,-494.7,0.00017863,2]
[363222901,1748628650348,-430.0,0.00017863,2]
[363222902,1748628650357,-494.05954336,0.00017863,2]
[363222903,1748628650367,-430.0,0.00017863,2]
[363222904,1748628650377,-960.93,0.00017863,2]
[363222905,1748628650387,-430.0,0.00017863,2]
[363222906,1748628650397,-430.0,0.00017863,2]
[363222907,1748628650406,-430.0,0.00017863,2]
[363222908,1748628650416,-718.44,0.00017863,2]
[363222909,1748628650425,-6891.09,0.00017863,2]
[363222910,1748628650435,-430.0,0.00017863,2]
[363222911,1748628650444,-430.0,0.00017863,2]
[363222912,1748628650454,-430.0,0.00017863,2]
[363222913,1748628650464,-430.0,0.00017863,2]
[363222914,1748628650474,-511.65,0.00017863,2]
[363222915,1748628650484,-430.0,0.00017863,2]
[363222916,1748628650493,-430.0,0.00017863,2]
[363222917,1748628650503,-3500.14,0.00017863,2]
[363222918,1748628650512,-430.0,0.00017863,2]
[363222919,1748628650521,-430.0,0.00017863,2]
[363222920,1748628650531,-430.0,0.00017863,2]
[363222921,1748628650540,-430.0,0.00017863,2]
[363222922,1748628650550,-430.0,0.00017863,2]
[363222923,1748628650560,-1228.28,0.00017863,2]
[363222924,1748628650571,-430.0,0.00017863,2]
[363222925,1748628650581,-430.0,0.00017863,2]
[363222926,1748628650590,-430.0,0.00017863,2]
[363222927,1748628650601,-430.0,0.00017863,2]
[363222928,1748628650610,-3133.61,0.00017863,2]
[363222929,1748628650619,-430.0,0.00017863,2]
[363222930,1748628650630,-430.0,0.00017863,2]
[363222931,1748628650640,-430.0,0.00017863,2]
[363222932,1748628650649,-430.0,0.00017863,2]
[363222933,1748628650659,-809.19,0.00017863,2]
[363222934,1748628650668,-430.0,0.00017863,2]
[363222935,1748628650678,-1205.08,0.00017863,2]
[363222936,1748628650688,-430.0,0.00017863,2]
[363222937,1748628650697,-430.0,0.00017863,2]
[363222938,1748628650706,-430.0,0.00017863,2]
[363222939,1748628650715,-652.3,0.00017863,2]
[363222940,1748628650725,-430.0,0.00017864,2]
[363222941,1748628650734,-158.727198,0.00017864,2]
[363222942,1748628650743,-222.547482,0.00017864,2]
[363222943,1748628650753,-158.727198,0.00017864,2]
[363222944,1748628650762,-222.547482,0.00017864,2]
[363222945,1748628650772,-650.348497,0.00017864,2]
[363222946,1748628650781,-650.348497,0.00017864,2]
[363222947,1748628650791,-151.0,0.00017864,2]
[363222948,1748628650800,-151.0,0.00017864,2]
[363222949,1748628650810,-165.983361,0.00017864,2]
[363222950,1748628650820,-165.983361,0.00017864,2]
[363222951,1748628650830,-1205.537788,0.00017864,2]
[363222952,1748628650839,-1205.537788,0.00017864,2]
[363222953,1748628650849,-151.0,0.00017864,2]
[363222954,1748628650858,-151.0,0.00017864,2]
[363222955,1748628650868,-254.544609,0.00017864,2]
[363222956,1748628650877,-254.544609,0.00017864,2]
[363222957,1748628650887,-151.0,0.00017864,2]
[363222958,1748628650896,-151.0,0.00017864,2]
[363222959,1748628650905,-617.158855,0.00017864,2]
[363222960,1748628650915,-617.158855,0.00017864,2]
[363222961,1748628650925,-2335.708636,0.00017864,2]
[363222962,1748628650934,-2335.708636,0.00017864,2]
[363222963,1748628650944,-151.0,0.00017864,2]
[363222964,1748628650953,-151.0,0.00017864,2]
[363222965,1748628650963,-430.0,0.00017864,2]
[363222966,1748628650973,-151.0,0.00017864,2]
[363222967,1748628650982,-1013.7,0.00017864,2]
[363222968,1748628650991,-1013.7,0.00017864,2]
[363222969,1748628651000,-1013.7,0.00017864,2]
[363222970,1748628651010,-1013.7,0.00017864,2]
[363222971,1748628651019,-1013.82881174,0.00017864,2]
[363222972,1748628651028,-1610.76,0.00017864,2]
[363222973,1748628651038,-430.0,0.00017864,2]
[363222974,1748628651047,-430.0,0.00017864,2]
[363222975,1748628651056,-6377.37,0.00017864,2]
[363222976,1748628651065,-430.0,0.00017864,2]
[363222977,1748628651074,-430.0,0.00017864,2]
[363222978,1748628651084,-532.04,0.00017864,2]
[363222979,1748628651094,-1044.356687,0.00017864,2]
[363222980,1748628651103,-1824.07,0.00017864,2]
[363222981,1748628651112,-1044.356687,0.00017864,2]
[363222982,1748628651121,-1305.58,0.00017864,2]
[363222983,1748628651130,-529.04,0.00017864,2]
[363222984,1748628651140,-639.511507,0.00017864,2]
[363222985,1748628651149,-639.511507,0.00017864,2]
[363222986,1748628651159,-1536.84,0.00017864,2]
[363222987,1748628651168,-452.37,0.00017864,2]
[363222988,1748628651178,-1533.3,0.00017864,2]
[363222989,1748628651187,-3646.79,0.00017864,2]
[363222990,1748628651199,-151.0,0.00017864,2]
[363222991,1748628651210,-1682.8,0.00017864,2]
[363222992,1748628651219,-158.27774,0.00017864,2]
[363222993,1748628651228,-158.27774,0.00017864,2]
[363222994,1748628651239,-3452.2,0.00017865,2]
[363222995,1748628651249,-3452.2,0.00017865,2]
[363222996,1748628651258,-151.0,0.00017865,2]
[363222997,1748628651268,-2580.675736,0.00017865,2]
[363222998,1748628651278,-2580.675736,0.00017865,2]
[363222999,1748628651287,-500.0,0.00017873,2]
[363223000,1748628651297,-500.0,0.00017873,2]
[363223001,1748628651307,-500.0,0.00017873,2]
[363223002,1748628651317,-500.0,0.00017873,2]
[363223003,1748628651328,-500.0,0.00017873,2]
[363223004,1748628651337,-503.02041151,0.00017873,2]
[363223005,1748628651346,-500.0,0.00017873,2]
[363223006,1748628651356,-213.73360797,0.00017873,2]
[363223007,1748628651367,-160.15275943,0.00017873,2]
[363223008,1748628651376,-500.0,0.00017873,2]
[363223009,1748628651385,-500.0,0.00017873,2]
[363223010,1748628651394,-500.0,0.00017873,2]
[363223011,1748628651403,-500.0,0.00017873,2]
[363223012,1748628651413,-430.0,0.00017897,2]
[363223013,1748628651422,-552.73462613,0.00017897,2]
[363223014,1748628651432,-420.0,0.00017897,2]
[363223015,1748628651442,-167.08816316,0.00017897,2]
[363223016,1748628651451,-430.0,0.00017897,2]
[363223017,1748628651462,-370.0,0.00017897,2]
[363223018,1748628651472,-151.0,0.00017897,2]
[363223019,1748628651481,-430.0,0.00017897,2]
[363223020,1748628651491,-430.0,0.00017897,2]
[363223021,1748628651500,-430.0,0.00017897,2]
[363223022,1748628651509,-430.0,0.00017897,2]
[363223023,1748628651520,-430.0,0.00017897,2]
[363223024,1748628651529,-430.0,0.00017897,2]
[363223025,1748628651539,-430.0,0.00017897,2]
[363223026,1748628651548,-430.0,0.00017897,2]
[363223027,1748628651557,-430.0,0.00017897,2]
[363223028,1748628651567,-430.0,0.00017897,2]
[363223029,1748628651579,-430.0,0.00017897,2]
[363223030,1748628651588,-430.0,0.00017897,2]
[363223031,1748628651598,-430.0,0.00017897,2]
[363223032,1748628651607,-430.0,0.00017897,2]
[363223033,1748628651617,-150.90627851,0.00017897,2]
[363223034,1748628651627,-430.0,0.00017897,2]
[363223035,1748628651636,-430.0,0.00017897,2]
[363223036,1748628651647,-430.0,0.00017897,2]
[363223037,1748628651656,-430.0,0.00017897,2]
[363223038,1748628651665,-430.0,0.00017897,2]
[363223039,1748628651675,-430.0,0.00017897,2]
[363223040,1748628651684,-430.0,0.00017897,2]
[363223041,1748628651694,-430.0,0.00017897,2]
[363223042,1748628651704,-430.0,0.00017897,2]
[363223043,1748628651714,-431.51491658,0.00017897,2]
[363223044,1748628651722,-430.0,0.00017897,2]
[363223045,1748628651731,-430.0,0.00017897,2]
[363223046,1748628651741,-430.0,0.00017897,2]
[363223047,1748628651750,-430.0,0.00017897,2]
[363223048,1748628651760,-320.0,0.00017897,2]
[363223049,1748628651770,-430.0,0.00017897,2]
[363223050,1748628651779,-8125.74069183,0.000179,2]
[363223051,1748628651789,-500.0,0.00017959,2]
[363223052,1748628651799,-500.0,0.00017959,2]
[363223053,1748628651809,-500.0,0.00017959,2]
[363223054,1748628651819,-500.0,0.00018,2]
[363223055,1748628651830,-164.836426,0.00018012,2]
[363223056,1748628651839,-164.836426,0.00018012,2]
[363223057,1748628651849,-297.77504,0.00018012,2]
[363223058,1748628651859,-297.77504,0.00018012,2]
[363223059,1748628651869,-213.80499,0.00018012,2]
[363223060,1748628651878,-655.837478,0.00018012,2]
[363223061,1748628651888,-430.0,0.00018012,2]
[363223062,1748628651897,-430.0,0.00018012,2]
[363223063,1748628651907,-430.0,0.00018012,2]
[363223064,1748628651916,-430.0,0.00018012,2]
[363223065,1748628651925,-430.0,0.00018012,2]
[363223066,1748628651935,-430.0,0.00018012,2]
[363223067,1748628651944,-430.0,0.00018012,2]
[363223068,1748628651954,-430.0,0.00018012,2]
[363223069,1748628651963,-151.0,0.00018012,2]
[363223070,1748628651972,-151.0,0.00018012,2]
[363223071,1748628651982,-172.17559629,0.00018012,2]
[363223072,1748628651991,-430.0,0.00018012,2]
[363223073,1748628652001,-151.0,0.00018012,2]
[363223074,1748628652011,-430.0,0.00018012,2]
[363223075,1748628652020,-430.0,0.00018012,2]
[363223076,1748628652030,-430.0,0.00018012,2]
[363223077,1748628652039,-430.0,0.00018012,2]
[363223078,1748628652050,-384.51447705,0.00018012,2]
[363223079,1748628652059,-442.38,0.00018012,2]
[363223080,1748628652069,-430.0,0.00018012,2]
[363223081,1748628652080,-259.47891798,0.00018012,2]
[363223082,1748628652089,-1000.0,0.00018012,2]
[363223083,1748628652099,-430.0,0.00018012,2]
[363223084,1748628652108,-430.0,0.00018012,2]
[363223085,1748628652118,-430.0,0.00018012,2]
[363223086,1748628652128,-430.0,0.00018012,2]
[363223087,1748628652137,-430.0,0.00018012,2]
[363223088,1748628652147,-430.0,0.00018012,2]
[363223089,1748628652158,-151.0,0.00018012,2]
[363223090,1748628652167,-151.0,0.00018012,2]
[363223091,1748628652176,-158.727198,0.00018012,2]
[363223092,1748628652185,-222.547482,0.00018012,2]
[363223093,1748628652195,-158.727198,0.00018012,2]
[363223094,1748628652208,-222.547482,0.00018012,2]
[363223095,1748628652218,-430.0,0.00018012,2]
[363223096,1748628652229,-389.88872956,0.00018012,2]
[363223097,1748628652243,-430.0,0.00018012,2]
[363223098,1748628652257,-430.0,0.00018012,2]
[363223099,1748628652387,-430.0,0.00018012,2]
[363223100,1748628652397,-430.0,0.00018012,2]
[363223101,1748628652407,-430.0,0.00018012,2]
[363223102,1748628652417,-650.348497,0.00018012,2]
[363223103,1748628652426,-463.84749772,0.00018012,2]
[363223104,1748628652436,-650.348497,0.00018012,2]
[363223105,1748628652446,-151.0,0.00018012,2]
[363223106,1748628652455,-151.0,0.00018012,2]
[363223107,1748628652464,-430.0,0.00018012,2]
[363223108,1748628652474,-430.0,0.00018012,2]
[363223109,1748628652483,-430.0,0.00018012,2]
[363223110,1748628652493,-165.983361,0.00018012,2]
[363223111,1748628652502,-430.0,0.00018012,2]
[363223112,1748628652512,-165.983361,0.00018012,2]
[363223113,1748628652522,-430.0,0.00018012,2]
[363223114,1748628652531,-430.0,0.00018012,2]
[363223115,1748628652540,-430.0,0.00018012,2]
[363223116,1748628652550,-430.0,0.00018012,2]
[363223117,1748628652560,-1205.537788,0.00018012,2]
[363223118,1748628652570,-430.0,0.00018012,2]
[363223119,1748628652580,-1205.537788,0.00018012,2]
[363223120,1748628652590,-430.0,0.00018012,2]
[363223121,1748628652600,-430.0,0.00018012,2]
[363223122,1748628652610,-430.0,0.00018012,2]
[363223123,1748628652619,-430.0,0.00018012,2]
[363223124,1748628652629,-430.0,0.00018012,2]
[363223125,1748628652639,-430.0,0.00018012,2]
[363223126,1748628652648,-151.0,0.00018012,2]
[363223127,1748628652658,-430.0,0.00018012,2]
[363223128,1748628652667,-430.0,0.00018012,2]
[363223129,1748628652677,-466.70567793,0.00018012,2]
[363223130,1748628652686,-430.0,0.00018012,2]
[363223131,1748628652695,-151.0,0.00018012,2]
[363223132,1748628652706,-254.544609,0.00018012,2]
[363223133,1748628652715,-430.0,0.00018012,2]
[363223134,1748628652724,-254.544609,0.00018012,2]
[363223135,1748628652734,-430.0,0.00018012,2]
[363223136,1748628652744,-430.0,0.00018012,2]
[363223137,1748628652754,-378.1520334,0.00018012,2]
[363223138,1748628652763,-151.0,0.00018012,2]
[363223139,1748628652772,-151.0,0.00018012,2]
[363223140,1748628652782,-430.0,0.00018012,2]
[363223141,1748628652792,-430.0,0.00018012,2]
[363223142,1748628652801,-430.0,0.00018012,2]
[363223143,1748628652811,-430.0,0.00018012,2]
[363223144,1748628652821,-430.0,0.00018012,2]
[363223145,1748628652831,-400.0,0.00018012,2]
[363223146,1748628652840,-430.0,0.00018012,2]
[363223147,1748628652849,-617.158855,0.00018012,2]
[363223148,1748628652859,-617.158855,0.00018012,2]
[363223149,1748628652868,-2335.708636,0.00018012,2]
[363223150,1748628652878,-2335.708636,0.00018012,2]
[363223151,1748628652887,-151.0,0.00018012,2]
[363223152,1748628652897,-151.0,0.00018012,2]
[363223153,1748628652906,-430.0,0.00018012,2]
[363223154,1748628652916,-430.0,0.00018012,2]
[363223155,1748628652925,-151.092993,0.00018012,2]
[363223156,1748628652935,-1044.356687,0.00018012,2]
[363223157,1748628652945,-2580.675736,0.00018012,2]
[363223158,1748628652954,-1044.356687,0.00018012,2]
[363223159,1748628652964,-2580.675736,0.00018012,2]
[363223160,1748628652974,-639.511507,0.00018012,2]
[363223161,1748628652983,-639.511507,0.00018012,2]
[363223162,1748628652993,-430.0,0.00018012,2]
[363223163,1748628653003,-430.0,0.00018012,2]
[363223164,1748628653014,-151.0,0.00018012,2]
[363223165,1748628653024,-158.27774,0.00018012,2]
[363223166,1748628653033,-158.27774,0.00018012,2]
[363223167,1748628653043,-500.0,0.0001802,2]
[363223168,1748628653053,-532.98731685,0.0001802,2]
[363223169,1748628653063,-151.0,0.00018086,2]
[363223170,1748628653074,-151.0,0.00018087,2]
[363223171,1748628653083,-164.836426,0.00018087,2]
[363223172,1748628653093,-164.836426,0.00018087,2]
[363223173,1748628653102,-297.77504,0.00018087,2]
[363223174,1748628653111,-297.77504,0.00018087,2]
[363223175,1748628653121,-965.409704,0.00018087,2]
[363223176,1748628653131,-655.837478,0.00018087,2]
[363223177,1748628653140,-965.409704,0.00018087,2]
[363223178,1748628653150,-151.0,0.00018087,2]
[363223179,1748628653159,-151.0,0.00018087,2]
[363223180,1748628653169,-151.0,0.00018087,2]
[363223181,1748628653179,-615.67473108,0.000181,2]
[363223182,1748628653188,-500.0,0.00018118,2]
[363223183,1748628653199,-500.0,0.00018118,2]
[363223184,1748628653210,-160.0,0.00018131,2]